fUSD/lending_fUSD_20260427
["ID","MTS","AMOUNT","RATE_DAILY","PERIOD"]
[421251861,1777287175778,-541.91,0.00038356,120]
[421251862,1777287175787,-795.18,0.00038356,120]
[421251863,1777287175796,-267.27811205,0.00038356,120]
[421251864,1777287175806,-1162.36,0.00038356,120]
[421251865,1777287175815,-845.1,0.00038356,120]
[421251866,1777287175824,-1487.38,0.00038356,120]
[421251867,1777287175834,-500.0,0.00038356,120]
[421251868,1777287175844,-234.09150961,0.00038356,120]
[421251869,1777287175853,-898.94,0.00038356,120]
[421251870,1777287175863,-2636.09,0.00038356,120]
[421251871,1777287175873,-500.0,0.00038356,120]
[421251872,1777287175883,-1789.45,0.00038356,120]
[421251873,1777287175892,-500.62,0.00038356,120]
[421251874,1777287175903,-892.08,0.00038356,120]
[421251875,1777287175912,-1085.3,0.00038356,120]
[421251876,1777287175922,-631.37,0.00038356,120]
[421251877,1777287175932,-581.62,0.00038356,120]
[421251878,1777287175942,-808.43,0.00038356,120]
[421251879,1777287175951,-741.62,0.00038356,120]
[421251880,1777287175961,-762.27,0.00038356,120]
[421251881,1777287175972,-1157.96,0.00038356,120]
[421251882,1777287175981,-633.93,0.00038356,120]
[421251883,1777287175991,-874.69,0.00038356,120]
[421251884,1777287176001,-900.98,0.00038356,120]
[421251885,1777287176011,-10204.73,0.00038356,120]
[421251886,1777287176020,-1526.17,0.00038356,120]
[421251887,1777287176030,-338.18917758,0.00038356,120]
[421251888,1777287176041,-277.47966256,0.00038356,120]
[421251889,1777287176051,-891.6,0.00038356,120]
[421251890,1777287176061,-1367.53,0.00038356,120]
[421251891,1777287176071,-683.25,0.00038356,120]
[421251892,1777287176081,-737.72,0.00038356,120]
[421251893,1777287176091,-10627.51,0.00038356,11]
[421251894,1777287176101,-1508.4,0.00038356,120]
[421251895,1777287176111,-944.61,0.00038356,120]
[421251896,1777287176121,-1952.39,0.00038356,120]
[421251897,1777287176131,-992.31,0.00038356,120]
[421251898,1777287176142,-644.32,0.00038356,120]
[421251899,1777287176153,-855.86,0.00038356,120]
[421251900,1777287176163,-938.15,0.00038356,120]
[421251901,1777287176173,-976.87,0.00038356,120]
[421251902,1777287176183,-176.48698325,0.00038356,120]
[421251903,1777287176194,-505.03,0.00038356,120]
[421251904,1777287176205,-889.14,0.00038356,120]
[421251905,1777287176215,-330.44579438,0.00038356,120]
[421251906,1777287176226,-816.73,0.00038356,120]
[421251907,1777287176236,-624.72,0.00038356,120]
[421251908,1777287176247,-9821.09,0.00038356,14]
[421251909,1777287176256,-523.03,0.00038356,120]
[421251910,1777287176268,-2650.84,0.00038356,2]
[421251911,1777287176278,-500.0,0.00038356,120]
[421251912,1777287176288,-822.98,0.00038356,120]
[421251913,1777287176299,-729.37,0.00038356,120]
[421251914,1777287176309,-1000.0,0.00038356,120]
[421251915,1777287176319,-1044.79,0.00038356,120]
[421251916,1777287176328,-2033.75,0.00038356,120]
[421251917,1777287176339,-2315.34,0.00038356,120]
[421251918,1777287176349,-1144.22,0.00038356,120]
[421251919,1777287176360,-872.94,0.00038356,120]
[421251920,1777287176370,-957.71,0.00038356,120]
[421251921,1777287176380,-651.78,0.00038356,120]
[421251922,1777287176390,-905.69,0.00038356,120]
[421251923,1777287176401,-659.77,0.00038356,120]
[421251924,1777287176411,-572.93,0.00038356,120]
[421251925,1777287176421,-526.89,0.00038356,120]
[421251926,1777287176432,-936.24,0.00038356,120]
[421251927,1777287176442,-2198.73,0.00038356,31]
[421251928,1777287176453,-7236.62,0.00038356,120]
[421251929,1777287176463,-601.2,0.00038356,120]
[421251930,1777287176473,-151.0,0.00038356,30]
[421251931,1777287176483,-151.0,0.00038356,30]
[421251932,1777287176493,-151.0,0.00038356,30]
[421251933,1777287176503,-151.0,0.00038356,30]
[421251934,1777287176513,-246.338862,0.00038356,30]
[421251935,1777287176524,-313.9212635,0.00038356,2]
[421251936,1777287176535,-1000.0,0.00038356,2]
[421251937,1777287176545,-1000.0,0.00038356,2]
[421251938,1777287176555,-1000.0,0.00038356,2]
[421251939,1777287176566,-344.36,0.00038356,30]
[421251940,1777287176576,-1000.0,0.00038356,2]
[421251941,1777287176587,-1000.0,0.00038356,2]
[421251942,1777287176597,-1000.0,0.00038356,2]
[421251943,1777287176607,-1000.0,0.00038356,2]
[421251944,1777287176618,-1000.0,0.00038356,2]
[421251945,1777287176629,-1000.0,0.00038356,2]
[421251946,1777287176639,-3317.78,0.00038356,120]
[421251947,1777287176649,-1000.0,0.00038356,2]
[421251948,1777287176659,-1000.0,0.00038356,2]
[421251949,1777287176670,-1000.0,0.00038356,2]
[421251950,1777287176680,-1000.0,0.00038356,2]
[421251951,1777287176690,-1000.0,0.00038356,2]
[421251952,1777287176701,-1000.0,0.00038356,2]
[421251953,1777287176711,-245.97,0.00038356,120]
[421251954,1777287176721,-208.44995652,0.00038366,120]
[421251955,1777287176731,-184.04815743,0.00038366,120]
[421251956,1777287176742,-184.04815738,0.00038366,120]
[421251957,1777287176752,-205.43175408,0.00038366,120]
[421251958,1777287176763,-170.4716336,0.00038366,120]
[421251959,1777287176772,-1164.2,0.00038398,120]
[421251960,1777287176782,-845.19,0.00038398,120]
[421251961,1777287176792,-359.15,0.00038398,120]
[421251962,1777287176803,-249.75,0.00038398,120]
[421251963,1777287176813,-6012.34,0.00038398,120]
[421251964,1777287176823,-1100.5,0.000384,120]
[421251965,1777287176832,-214.33253288,0.00038549,120]
[421251966,1777287176842,-500.0,0.0003857,2]
[421251967,1777287176853,-1000.0,0.0003857,2]
[421251968,1777287176862,-458.36,0.00038619,30]
[421251969,1777287176872,-300.0,0.00038622,30]
[421251970,1777287176882,-40919.8,0.0003863,120]
[421251971,1777287176892,-5510.884336,0.0003863,120]
[421251972,1777287176902,-406.931409,0.0003863,120]
[421251973,1777287176912,-325.762595,0.0003863,120]
[421251974,1777287176921,-342.964341,0.0003863,120]
[421251975,1777287176931,-2698.281126,0.0003863,120]
[421251976,1777287176946,-500.0,0.0003863,120]
[421251977,1777287176957,-863.36,0.0003863,120]
[421251978,1777287176968,-599.06,0.0003863,120]
[421251979,1777287176978,-640.83,0.0003863,120]
[421251980,1777287176988,-565.53,0.0003863,120]
[421251981,1777287176999,-1211.95,0.0003863,120]
[421251982,1777287177010,-553.4,0.0003863,120]
[421251983,1777287177021,-715.07,0.0003863,120]
[421251984,1777287177031,-938.55,0.0003863,120]
[421251985,1777287177042,-1090.36,0.0003863,120]
[421251986,1777287177053,-500.0,0.0003863,120]
[421251987,1777287177063,-634.95,0.0003863,120]
[421251988,1777287177073,-528.14,0.0003863,120]
[421251989,1777287177084,-1072.38,0.0003863,120]
[421251990,1777287177094,-1314.31,0.0003863,120]
[421251991,1777287177104,-703.47,0.0003863,120]
[421251992,1777287177115,-787.64,0.0003863,120]
[421251993,1777287177125,-516.81,0.0003863,120]
[421251994,1777287177135,-2357.31,0.0003863,120]
[421251995,1777287177146,-1649.9,0.0003863,30]
[421251996,1777287177156,-527.75,0.0003863,120]
[421251997,1777287177168,-663.98,0.0003863,120]
[421251998,1777287177178,-752.81,0.0003863,120]
[421251999,1777287177188,-696.22,0.0003863,120]
[421252000,1777287177199,-1446.95,0.0003863,120]
[421252001,1777287177209,-964.96,0.0003863,120]
[421252002,1777287177219,-529.41,0.0003863,120]
[421252003,1777287177229,-500.0,0.0003863,120]
[421252004,1777287177239,-500.0,0.0003863,120]
[421252005,1777287177248,-1077.32,0.0003863,120]
[421252006,1777287177259,-949.83,0.0003863,120]
[421252007,1777287177269,-765.4,0.0003863,120]
[421252008,1777287177278,-599.76,0.0003863,120]
[421252009,1777287177288,-812.99,0.0003863,120]
[421252010,1777287177298,-1319.91,0.0003863,120]
[421252011,1777287177308,-559.35,0.0003863,120]
[421252012,1777287177318,-1706.39,0.0003863,120]
[421252013,1777287177328,-668.63,0.0003863,120]
[421252014,1777287177338,-1799.8,0.0003863,30]
[421252015,1777287177663,-2310.82,0.0003863,120]
[421252016,1777287177672,-150.6,0.0003863,120]
[421252017,1777287177682,-951.83,0.0003863,120]
[421252018,1777287177691,-500.0,0.0003863,120]
[421252019,1777287177699,-691.55,0.0003863,120]
[421252020,1777287177709,-822.42,0.0003863,120]
[421252021,1777287177719,-1041.51,0.0003863,120]
[421252022,1777287177728,-690.22,0.0003863,120]
[421252023,1777287177738,-817.53,0.0003863,120]
[421252024,1777287177748,-447.79690897,0.0003863,120]
[421252025,1777287177758,-588.19354294,0.0003863,120]
[421252026,1777287177767,-812.8,0.0003863,120]
[421252027,1777287177777,-894.99,0.0003863,120]
[421252028,1777287177786,-1018.47,0.0003863,120]
[421252029,1777287177795,-1560.45,0.0003863,10]
[421252030,1777287177805,-654.65,0.0003863,120]
[421252031,1777287177815,-770.15,0.0003863,120]
[421252032,1777287177825,-747.23,0.0003863,120]
[421252033,1777287177835,-592.21,0.0003863,120]
[421252034,1777287177844,-1047.65,0.0003863,120]
[421252035,1777287177853,-363.85126352,0.0003863,120]
[421252036,1777287177863,-548.93,0.0003863,120]
[421252037,1777287177872,-1885.25,0.0003863,120]
[421252038,1777287177882,-810.82,0.0003863,120]
[421252039,1777287177892,-632.88,0.0003863,120]
[421252040,1777287177901,-1242.85,0.0003863,120]
[421252041,1777287177911,-696.25,0.0003863,120]
[421252042,1777287177921,-1579.01,0.0003863,120]
[421252043,1777287177931,-601.37,0.0003863,120]
[421252044,1777287177940,-1456.44,0.0003863,120]
[421252045,1777287177950,-595.98,0.0003863,120]
[421252046,1777287177960,-500.0,0.0003863,120]
[421252047,1777287177970,-1572.92,0.0003863,120]
[421252048,1777287177980,-557.52749709,0.0003863,120]
[421252049,1777287177989,-685.94,0.0003863,120]
[421252050,1777287177999,-1223.21,0.0003863,120]
[421252051,1777287178009,-996.26,0.0003863,120]
[421252052,1777287178020,-987.31,0.0003863,120]
[421252053,1777287178030,-977.11,0.0003863,120]
[421252054,1777287178039,-1114.4,0.0003863,120]
[421252055,1777287178049,-922.87,0.0003863,120]
[421252056,1777287178058,-694.64,0.0003863,120]
[421252057,1777287178067,-876.6,0.0003863,120]
[421252058,1777287178077,-1292.17,0.0003863,120]
[421252059,1777287178086,-500.0,0.0003863,120]
[421252060,1777287178096,-2804.65,0.0003863,120]
[421252061,1777287178105,-831.75,0.0003863,14]
[421252062,1777287178115,-695.08,0.0003863,120]
[421252063,1777287178124,-975.03,0.0003863,120]
[421252064,1777287178133,-667.25,0.0003863,120]
[421252065,1777287178142,-514.22,0.0003863,120]
[421252066,1777287178151,-808.81,0.0003863,120]
[421252067,1777287178161,-656.37,0.0003863,120]
[421252068,1777287178175,-1754.83,0.0003863,120]
[421252069,1777287178184,-809.84,0.0003863,120]
[421252070,1777287178193,-924.49,0.0003863,120]
[421252071,1777287178203,-816.58,0.0003863,120]
[421252072,1777287178213,-1699.99,0.0003863,120]
[421252073,1777287178222,-963.43,0.0003863,120]
[421252074,1777287178231,-988.21,0.0003863,120]
[421252075,1777287178241,-803.53,0.0003863,120]
[421252076,1777287178250,-983.75,0.0003863,120]
[421252077,1777287178259,-806.48,0.0003863,120]
[421252078,1777287178269,-1721.56,0.0003863,120]
[421252079,1777287178278,-899.89,0.0003863,120]
[421252080,1777287178288,-1666.52,0.0003863,120]
[421252081,1777287178297,-903.54,0.0003863,120]
[421252082,1777287178307,-640.16,0.0003863,120]
[421252083,1777287178316,-2805.42,0.0003863,120]
[421252084,1777287178325,-1658.74,0.0003863,120]
[421252085,1777287178335,-507.17,0.0003863,120]
[421252086,1777287178345,-760.12,0.0003863,120]
[421252087,1777287178354,-1131.48,0.0003863,120]
[421252088,1777287178364,-1275.35,0.0003863,120]
[421252089,1777287178373,-1186.63,0.0003863,120]
[421252090,1777287178382,-726.02,0.0003863,120]
[421252091,1777287178391,-1746.47,0.0003863,120]
[421252092,1777287178400,-857.8,0.0003863,120]
[421252093,1777287178409,-942.29,0.0003863,120]
[421252094,1777287178419,-888.77,0.0003863,120]
[421252095,1777287178428,-615.52,0.0003863,120]
[421252096,1777287178437,-691.21,0.0003863,120]
[421252097,1777287178447,-1549.89,0.0003863,120]
[421252098,1777287178456,-597.1,0.0003863,120]
[421252099,1777287178466,-646.3,0.0003863,120]
[421252100,1777287178477,-516.45,0.0003863,120]
[421252101,1777287178486,-996.25,0.0003863,120]
[421252102,1777287178496,-729.86,0.0003863,120]
[421252103,1777287178506,-862.2,0.0003863,120]
[421252104,1777287178516,-902.68,0.0003863,120]
[421252105,1777287178525,-932.95,0.0003863,120]
[421252106,1777287178534,-932.07,0.0003863,120]
[421252107,1777287178543,-501.5,0.0003863,120]
[421252108,1777287178553,-638.61,0.0003863,120]
[421252109,1777287178563,-946.6,0.0003863,120]
[421252110,1777287178572,-460.09417897,0.0003863,120]
[421252111,1777287178581,-1014.18,0.0003863,120]
[421252112,1777287178591,-714.89,0.0003863,120]
[421252113,1777287178600,-1988.17,0.0003863,120]
[421252114,1777287178610,-563.81,0.0003863,120]
[421252115,1777287178620,-1640.34,0.0003863,120]
[421252116,1777287178629,-500.0,0.0003863,120]
[421252117,1777287178638,-885.91,0.0003863,120]
[421252118,1777287178647,-891.92,0.0003863,120]
[421252119,1777287178657,-669.56,0.0003863,120]
[421252120,1777287178666,-500.0,0.0003863,120]
[421252121,1777287178676,-1390.78,0.0003863,120]
[421252122,1777287178685,-668.1,0.0003863,120]
[421252123,1777287178694,-660.18,0.0003863,120]
[421252124,1777287178704,-691.69,0.0003863,120]
[421252125,1777287178713,-691.03,0.0003863,120]
[421252126,1777287178722,-618.59,0.0003863,30]
[421252127,1777287178731,-535.5599032,0.0003863,120]
[421252128,1777287178740,-922.63,0.0003863,120]
[421252129,1777287178750,-953.58,0.0003863,120]
[421252130,1777287178759,-525.11,0.0003863,120]
[421252131,1777287178768,-4917.9,0.0003863,120]
[421252132,1777287178777,-551.36,0.0003863,120]
[421252133,1777287178787,-840.29,0.0003863,120]
[421252134,1777287178796,-1800.54,0.0003863,120]
[421252135,1777287178806,-919.84,0.0003863,120]
[421252136,1777287178815,-739.88,0.0003863,120]
[421252137,1777287178824,-500.0,0.0003863,120]
[421252138,1777287178834,-1344.25,0.0003863,120]
[421252139,1777287178843,-291.40491437,0.0003863,60]
[421252140,1777287178852,-916.78,0.0003863,120]
[421252141,1777287178862,-1078.03,0.0003863,120]
[421252142,1777287178871,-1345.97,0.0003863,120]
[421252143,1777287178881,-947.63,0.0003863,120]
[421252144,1777287178890,-549.91,0.0003863,120]
[421252145,1777287178900,-748.29,0.0003863,120]
[421252146,1777287178909,-1742.02,0.0003863,120]
[421252147,1777287178919,-980.13,0.0003863,120]
[421252148,1777287178927,-547.89,0.0003863,120]
[421252149,1777287178937,-808.71,0.0003863,120]
[421252150,1777287178947,-697.0,0.0003863,120]
[421252151,1777287178956,-698.74,0.0003863,120]
[421252152,1777287178965,-861.18,0.0003863,120]
[421252153,1777287178975,-599.72,0.0003863,120]
[421252154,1777287178984,-971.15,0.0003863,120]
[421252155,1777287178994,-1898.91,0.0003863,120]
[421252156,1777287179004,-2008.02,0.0003863,120]
[421252157,1777287179013,-614.92976275,0.0003863,120]
[421252158,1777287179023,-546.88,0.0003863,120]
[421252159,1777287179032,-933.2,0.0003863,120]
[421252160,1777287179041,-923.43,0.0003863,120]
[421252161,1777287179051,-814.23,0.0003863,7]
[421252162,1777287179060,-500.0,0.0003863,120]
[421252163,1777287179069,-545.89,0.0003863,120]
[421252164,1777287179080,-607.22,0.0003863,120]
[421252165,1777287179089,-1022.01,0.0003863,120]
[421252166,1777287179099,-1403.37,0.0003863,120]
[421252167,1777287179108,-996.98,0.0003863,120]
[421252168,1777287179118,-571.92,0.0003863,120]
[421252169,1777287179128,-2027.39,0.0003863,120]
[421252170,1777287179137,-544.78,0.0003863,120]
[421252171,1777287179146,-1173.63,0.0003863,120]
[421252172,1777287179156,-580.92,0.0003863,120]
[421252173,1777287179165,-957.19,0.0003863,120]
[421252174,1777287179175,-1129.42,0.0003863,120]
[421252175,1777287179184,-549.6,0.0003863,120]
[421252176,1777287179193,-166.6931373,0.0003863,120]
[421252177,1777287179203,-957.72,0.0003863,120]
[421252178,1777287179212,-2273.93,0.0003863,120]
[421252179,1777287179221,-531.34,0.0003863,120]
[421252180,1777287179231,-826.33,0.0003863,120]
[421252181,1777287179240,-509.36,0.0003863,120]
[421252182,1777287179250,-1144.83,0.0003863,120]
[421252183,1777287179259,-870.72,0.0003863,120]
[421252184,1777287179268,-1987.57,0.0003863,120]
[421252185,1777287179278,-1889.91,0.0003863,120]
[421252186,1777287179288,-997.41,0.0003863,120]
[421252187,1777287179297,-645.47,0.0003863,120]
[421252188,1777287179306,-551.39,0.0003863,120]
[421252189,1777287179315,-607.71,0.0003863,120]
[421252190,1777287179324,-1410.28,0.0003863,120]
[421252191,1777287179333,-1075.28,0.0003863,120]
[421252192,1777287179342,-512.2,0.0003863,120]
[421252193,1777287179352,-571.84,0.0003863,120]
[421252194,1777287179361,-411.53732102,0.0003863,120]
[421252195,1777287179371,-670.88,0.0003863,120]
[421252196,1777287179382,-927.87,0.0003863,120]
[421252197,1777287179391,-733.46,0.0003863,120]
[421252198,1777287179401,-845.56,0.0003863,120]
[421252199,1777287179410,-1708.75,0.0003863,120]
[421252200,1777287179419,-1389.02,0.0003863,120]
[421252201,1777287179428,-969.99,0.0003863,120]
[421252202,1777287179437,-721.4,0.0003863,120]
[421252203,1777287179446,-832.2,0.0003863,120]
[421252204,1777287179455,-1256.96,0.0003863,120]
[421252205,1777287179464,-822.73,0.0003863,120]
[421252206,1777287179473,-599.41,0.0003863,30]
[421252207,1777287179483,-1697.87,0.0003863,120]
[421252208,1777287179493,-740.81,0.0003863,120]
[421252209,1777287179502,-767.5,0.0003863,120]
[421252210,1777287179512,-704.65,0.0003863,120]
[421252211,1777287179521,-874.64,0.0003863,120]
[421252212,1777287179530,-725.79,0.0003863,120]
[421252213,1777287179539,-539.51,0.0003863,120]
[421252214,1777287179548,-3139.33,0.0003863,120]
[421252215,1777287179557,-1571.63,0.0003863,120]
[421252216,1777287179566,-631.89,0.0003863,120]
[421252217,1777287179575,-724.47,0.0003863,120]
[421252218,1777287179584,-714.42,0.0003863,120]
[421252219,1777287179593,-830.35,0.0003863,120]
[421252220,1777287179602,-529.87,0.0003863,120]
[421252221,1777287179611,-890.53,0.0003863,120]
[421252222,1777287179620,-633.28,0.0003863,120]
[421252223,1777287179629,-1042.08,0.0003863,120]
[421252224,1777287179639,-1031.26,0.0003863,120]
[421252225,1777287179648,-789.82,0.0003863,120]
[421252226,1777287179657,-1044.44,0.0003863,7]
[421252227,1777287179667,-2152.64,0.0003863,120]
[421252228,1777287179676,-951.45,0.0003863,120]
[421252229,1777287179686,-10570.76,0.0003863,120]
[421252230,1777287179696,-953.25,0.0003863,120]
[421252231,1777287179705,-500.0,0.0003863,120]
[421252232,1777287179714,-683.94,0.0003863,120]
[421252233,1777287179723,-1457.61,0.0003863,120]
[421252234,1777287179732,-853.59,0.0003863,120]
[421252235,1777287179742,-927.26,0.0003863,120]
[421252236,1777287179751,-692.0,0.0003863,120]
[421252237,1777287179760,-1072.51,0.0003863,120]
[421252238,1777287179769,-2915.57,0.0003863,120]
[421252239,1777287179778,-731.44,0.0003863,120]
[421252240,1777287179787,-701.43,0.0003863,120]
[421252241,1777287179796,-954.88,0.0003863,120]
[421252242,1777287179806,-838.15,0.0003863,120]
[421252243,1777287179815,-1783.16,0.0003863,120]
[421252244,1777287179824,-4705.11,0.0003863,120]
[421252245,1777287179834,-1730.6,0.0003863,120]
[421252246,1777287179844,-1123.77,0.0003863,120]
[421252247,1777287179853,-714.81,0.0003863,120]
[421252248,1777287179863,-1408.68,0.0003863,120]
[421252249,1777287179873,-5381.05,0.0003863,120]
[421252250,1777287179882,-667.82,0.0003863,120]
[421252251,1777287179892,-1779.59,0.0003863,120]
[421252252,1777287179901,-922.62,0.0003863,120]
[421252253,1777287179910,-625.44,0.0003863,5]
[421252254,1777287180031,-1690.78,0.0003863,120]
[421252255,1777287180041,-674.61,0.0003863,120]
[421252256,1777287180051,-2035.1,0.0003863,120]
[421252257,1777287180062,-1164.41,0.0003863,120]
[421252258,1777287180072,-1082.08,0.0003863,120]
[421252259,1777287180081,-500.0,0.0003863,120]
[421252260,1777287180091,-998.96,0.0003863,120]
[421252261,1777287180100,-1043.04,0.0003863,120]
[421252262,1777287180109,-784.08,0.0003863,120]
[421252263,1777287180120,-1079.64,0.0003863,120]
[421252264,1777287180129,-1143.94,0.0003863,120]
[421252265,1777287180139,-1451.57,0.0003863,120]
[421252266,1777287180149,-819.21,0.0003863,120]
[421252267,1777287180159,-1138.56,0.0003863,120]
[421252268,1777287180169,-601.09,0.0003863,120]
[421252269,1777287180178,-4201.7,0.0003863,120]
[421252270,1777287180187,-1047.55,0.0003863,120]
[421252271,1777287180196,-996.55,0.0003863,120]
[421252272,1777287180206,-541.91,0.0003863,120]
[421252273,1777287180215,-795.18,0.0003863,120]
[421252274,1777287180225,-1162.36,0.0003863,120]
[421252275,1777287180235,-845.1,0.0003863,120]
[421252276,1777287180244,-1487.38,0.0003863,120]
[421252277,1777287180254,-496.79947613,0.0003863,120]
[421252278,1777287180263,-898.94,0.0003863,120]
[421252279,1777287180272,-2636.09,0.0003863,120]
[421252280,1777287180282,-500.0,0.0003863,120]
[421252281,1777287180291,-1789.45,0.0003863,120]
[421252282,1777287180300,-500.62,0.0003863,120]
[421252283,1777287180310,-892.08,0.0003863,120]
[421252284,1777287180320,-1085.3,0.0003863,120]
[421252285,1777287180329,-631.37,0.0003863,120]
[421252286,1777287180339,-581.62,0.0003863,120]
[421252287,1777287180348,-808.43,0.0003863,120]
[421252288,1777287180357,-741.62,0.0003863,120]
[421252289,1777287180367,-762.27,0.0003863,120]
[421252290,1777287180377,-1157.96,0.0003863,120]
[421252291,1777287180386,-633.93,0.0003863,120]
[421252292,1777287180395,-874.69,0.0003863,120]
[421252293,1777287180408,-900.98,0.0003863,120]
[421252294,1777287180418,-10204.73,0.0003863,120]
[421252295,1777287180427,-1526.17,0.0003863,120]
[421252296,1777287180438,-891.6,0.0003863,120]
[421252297,1777287180447,-1367.53,0.0003863,120]
[421252298,1777287180457,-683.25,0.0003863,120]
[421252299,1777287180467,-737.72,0.0003863,120]
[421252300,1777287180476,-10627.51,0.0003863,11]
[421252301,1777287180486,-1508.4,0.0003863,120]
[421252302,1777287180496,-944.61,0.0003863,120]
[421252303,1777287180506,-1952.39,0.0003863,120]
[421252304,1777287180515,-992.31,0.0003863,120]
[421252305,1777287180524,-644.32,0.0003863,120]
[421252306,1777287180534,-855.86,0.0003863,120]
[421252307,1777287180543,-938.15,0.0003863,120]
[421252308,1777287180553,-976.87,0.0003863,120]
[421252309,1777287180563,-505.03,0.0003863,120]
[421252310,1777287180574,-889.14,0.0003863,120]
[421252311,1777287180584,-816.73,0.0003863,120]
[421252312,1777287180595,-624.72,0.0003863,120]
[421252313,1777287180606,-9821.09,0.0003863,14]
[421252314,1777287180615,-523.03,0.0003863,120]
[421252315,1777287180625,-2650.84,0.0003863,2]
[421252316,1777287180634,-500.0,0.0003863,120]
[421252317,1777287180644,-822.98,0.0003863,120]
[421252318,1777287180654,-729.37,0.0003863,120]
[421252319,1777287180663,-1000.0,0.0003863,120]
[421252320,1777287180673,-1044.79,0.0003863,120]
[421252321,1777287180682,-2033.75,0.0003863,120]
[421252322,1777287180691,-2315.34,0.0003863,120]
[421252323,1777287180704,-1144.22,0.0003863,120]
[421252324,1777287180713,-872.94,0.0003863,120]
[421252325,1777287180723,-957.71,0.0003863,120]
[421252326,1777287180733,-651.78,0.0003863,120]
[421252327,1777287180742,-905.69,0.0003863,120]
[421252328,1777287180752,-659.77,0.0003863,120]
[421252329,1777287180762,-572.93,0.0003863,120]
[421252330,1777287180771,-526.89,0.0003863,120]
[421252331,1777287180782,-936.24,0.0003863,120]
[421252332,1777287180792,-2198.73,0.0003863,31]
[421252333,1777287180802,-7236.62,0.0003863,120]
[421252334,1777287180812,-601.2,0.0003863,120]
[421252335,1777287180822,-1818.0,0.0003863,120]
[421252336,1777287180831,-1818.0,0.0003863,90]
[421252337,1777287180841,-1818.0,0.0003863,60]
[421252338,1777287180850,-1818.0,0.0003863,30]
[421252339,1777287180859,-401.76558421,0.00038638,120]
[421252340,1777287180869,-184.04815743,0.0003864,120]
[421252341,1777287180879,-170.4716336,0.0003864,120]
[421252342,1777287180889,-500.0,0.000387,120]
[421252343,1777287180899,-500.0,0.000387,120]
[421252344,1777287180909,-500.0,0.000387,120]
[421252345,1777287180918,-500.0,0.000387,120]
[421252346,1777287180927,-500.0,0.000387,120]
[421252347,1777287180937,-500.0,0.000387,120]
[421252348,1777287180947,-500.0,0.000387,120]
[421252349,1777287180956,-500.0,0.000387,120]
[421252350,1777287180966,-500.0,0.000387,120]
[421252351,1777287180975,-500.0,0.000387,120]
[421252352,1777287180984,-500.0,0.000387,120]
[421252353,1777287180993,-500.0,0.000387,120]
[421252354,1777287181003,-500.0,0.000387,120]
[421252355,1777287181012,-500.0,0.000387,120]
[421252356,1777287181021,-500.0,0.000387,120]
[421252357,1777287181031,-500.0,0.000387,120]
[421252358,1777287181040,-500.0,0.000387,120]
[421252359,1777287181049,-500.0,0.000387,120]
[421252360,1777287181059,-500.0,0.000387,120]